fUSD/lending_fUSD_20240303
["ID","MTS","AMOUNT","RATE_DAILY","PERIOD"]
[316288482,1709424646467,-500.0,0.00021369,2]
[316288483,1709424646477,-500.0,0.00021369,2]
[316288484,1709424646486,-500.0,0.00021369,2]
[316288485,1709424646495,-500.0,0.00021369,2]
[316288486,1709424646504,-500.0,0.00021369,2]
[316288487,1709424646513,-500.0,0.00021369,2]
[316288488,1709424646522,-500.0,0.00021369,2]
[316288489,1709424646531,-500.0,0.00021369,2]
[316288490,1709424646540,-860.0,0.00021369,2]
[316288491,1709424646549,-782.59,0.00021369,2]
[316288492,1709424646559,-500.0,0.00021369,2]
[316288493,1709424646568,-500.0,0.00021369,2]
[316288494,1709424646577,-500.0,0.00021369,2]
[316288495,1709424646587,-500.0,0.00021369,2]
[316288496,1709424646596,-500.0,0.00021369,2]
[316288497,1709424646606,-500.0,0.00021369,2]
[316288498,1709424646615,-500.0,0.00021369,2]
[316288499,1709424646624,-500.0,0.00021369,2]
[316288500,1709424646633,-500.0,0.00021369,2]
[316288501,1709424646642,-500.0,0.00021369,2]
[316288502,1709424646652,-500.0,0.00021369,2]
[316288503,1709424646661,-500.0,0.00021369,2]
[316288504,1709424646673,-500.0,0.00021369,2]
[316288505,1709424646682,-500.0,0.00021369,2]
[316288506,1709424646691,-546.37,0.00021369,2]
[316288507,1709424646700,-500.0,0.00021369,2]
[316288508,1709424646709,-500.0,0.00021369,2]
[316288509,1709424646718,-1139.87,0.00021369,2]
[316288511,1709424646727,-500.0,0.00021369,2]
[316288513,1709424646736,-500.0,0.00021369,2]
[316288515,1709424646745,-500.0,0.00021369,2]
[316288517,1709424646754,-500.0,0.00021369,2]
[316288520,1709424646767,-500.0,0.00021369,2]
[316288521,1709424646777,-641.77,0.00021369,2]
[316288523,1709424646786,-854.19,0.00021369,2]
[316288525,1709424646795,-500.0,0.00021369,2]
[316288527,1709424646805,-500.0,0.00021369,2]
[316288529,1709424646815,-500.0,0.00021369,2]
[316288531,1709424646824,-500.0,0.00021369,2]
[316288533,1709424646834,-955.69,0.00021369,2]
[316288536,1709424646845,-500.0,0.00021369,2]
[316288538,1709424646856,-500.0,0.00021369,2]
[316288540,1709424646865,-500.0,0.00021369,2]
[316288542,1709424646874,-310.92980397,0.00021369,2]
[316288544,1709424646884,-500.0,0.00021369,2]
[316288545,1709424646893,-500.0,0.00021369,2]
[316288548,1709424646902,-500.0,0.00021369,2]
[316288550,1709424646912,-500.0,0.00021369,2]
[316288552,1709424646923,-500.0,0.00021369,2]
[316288554,1709424646933,-500.0,0.00021369,2]
[316288555,1709424646943,-500.0,0.00021369,2]
[316288556,1709424646952,-500.0,0.00021369,2]
[316288557,1709424646961,-500.0,0.00021369,2]
[316288558,1709424646971,-500.0,0.00021369,2]
[316288559,1709424646980,-500.0,0.00021369,2]
[316288560,1709424646989,-500.0,0.00021369,2]
[316288561,1709424646998,-952.83,0.00021369,2]
[316288562,1709424647007,-926.18,0.00021369,2]
[316288563,1709424647016,-500.0,0.00021369,2]
[316288564,1709424647025,-543.38,0.00021369,2]
[316288565,1709424647034,-500.0,0.00021369,2]
[316288566,1709424647044,-500.0,0.00021369,2]
[316288567,1709424647053,-500.0,0.00021369,2]
[316288568,1709424647062,-301.88,0.00021369,2]
[316288569,1709424647072,-500.0,0.00021369,2]
[316288570,1709424647081,-500.0,0.00021369,2]
[316288571,1709424647091,-500.0,0.00021369,2]
[316288572,1709424647100,-173.91947272,0.00021369,2]
[316288573,1709424647109,-1057.45,0.00021369,2]
[316288574,1709424647119,-500.0,0.00021369,2]
[316288575,1709424647128,-500.0,0.00021369,2]
[316288576,1709424647138,-500.0,0.00021369,2]
[316288577,1709424647147,-1753.44,0.00021369,2]
[316288578,1709424647157,-500.0,0.00021369,2]
[316288579,1709424647166,-500.0,0.00021369,2]
[316288580,1709424647177,-500.0,0.00021369,2]
[316288581,1709424647187,-500.0,0.00021369,2]
[316288582,1709424647196,-500.0,0.00021369,2]
[316288583,1709424647206,-1046.31,0.00021369,2]
[316288584,1709424647215,-500.0,0.00021369,2]
[316288585,1709424647224,-500.0,0.00021369,2]
[316288586,1709424647233,-500.0,0.00021369,2]
[316288587,1709424647242,-5811.28,0.00021369,2]
[316288588,1709424647252,-500.0,0.00021369,2]
[316288589,1709424647261,-500.0,0.00021369,2]
[316288590,1709424647270,-500.0,0.00021369,2]
[316288591,1709424647279,-938.04,0.00021369,2]
[316288592,1709424647288,-1467.45,0.00021369,2]
[316288593,1709424647298,-500.0,0.00021369,2]
[316288594,1709424647308,-500.0,0.00021369,2]
[316288595,1709424647317,-500.0,0.00021369,2]
[316288596,1709424647326,-1210.32,0.00021369,2]
[316288597,1709424647335,-500.0,0.00021369,2]
[316288598,1709424647345,-500.0,0.00021369,2]
[316288599,1709424647353,-1614.95,0.00021369,2]
[316288600,1709424647362,-500.0,0.00021369,2]
[316288601,1709424647371,-607.74191214,0.00021369,2]
[316288602,1709424647380,-500.0,0.00021369,2]
[316288603,1709424647389,-2899.5,0.00021369,2]
[316288604,1709424647399,-500.0,0.00021369,2]
[316288605,1709424647408,-500.0,0.00021369,2]
[316288606,1709424647417,-500.0,0.00021369,2]
[316288607,1709424647427,-500.0,0.00021369,2]
[316288608,1709424647436,-500.0,0.00021369,2]
[316288609,1709424647445,-848.36,0.00021369,2]
[316288610,1709424647454,-1193.91,0.00021369,2]
[316288611,1709424647463,-500.0,0.00021369,2]
[316288612,1709424647473,-500.0,0.00021369,2]
[316288613,1709424647482,-2939.72,0.00021369,2]
[316288614,1709424647491,-617.26,0.00021369,2]
[316288615,1709424647501,-500.0,0.00021369,2]
[316288616,1709424647510,-1244.0,0.00021369,2]
[316288617,1709424647520,-3491.64,0.00021369,2]
[316288618,1709424647529,-500.0,0.00021369,2]
[316288619,1709424647538,-943.02,0.00021369,2]
[316288620,1709424647547,-500.0,0.00021369,2]
[316288621,1709424647556,-500.0,0.00021369,2]
[316288622,1709424647566,-500.0,0.00021369,2]
[316288623,1709424647576,-1860.04,0.00021369,2]
[316288624,1709424647585,-1166.24,0.00021369,2]
[316288625,1709424647595,-500.0,0.00021369,2]
[316288626,1709424647604,-2576.56,0.00021369,2]
[316288627,1709424647614,-500.0,0.00021369,2]
[316288628,1709424647623,-1296.32,0.00021369,2]
[316288629,1709424647633,-3884.31,0.00021369,2]
[316288630,1709424647642,-500.0,0.00021369,2]
[316288631,1709424647651,-649.23174269,0.00021369,2]
[316288632,1709424647661,-548.79,0.00021369,2]
[316288633,1709424647670,-2411.93,0.00021369,2]
[316288634,1709424647679,-500.0,0.00021369,2]
[316288635,1709424647689,-693.48,0.00021369,2]
[316288636,1709424647698,-500.0,0.00021369,2]
[316288637,1709424647708,-500.0,0.00021369,2]
[316288638,1709424647717,-500.0,0.00021369,2]
[316288639,1709424647726,-1379.37,0.00021369,2]
[316288640,1709424647735,-2402.77,0.00021369,2]
[316288641,1709424647744,-2887.15,0.00021369,2]
[316288642,1709424647754,-500.0,0.00021369,2]
[316288643,1709424647763,-500.0,0.00021369,2]
[316288644,1709424647772,-1128.47,0.00021369,2]
[316288645,1709424647785,-500.0,0.00021369,2]
[316288646,1709424647794,-829.15,0.00021369,2]
[316288647,1709424647803,-918.85,0.00021369,2]
[316288648,1709424647812,-500.0,0.00021369,2]
[316288649,1709424647821,-500.0,0.00021369,2]
[316288650,1709424647830,-736.28,0.00021369,2]
[316288651,1709424647839,-500.0,0.00021369,2]
[316288652,1709424647850,-1352.4,0.00021369,2]
[316288653,1709424647859,-1873.1,0.00021369,2]
[316288654,1709424647869,-1196.69,0.00021369,2]
[316288655,1709424647878,-8811.53,0.00021369,2]
[316288656,1709424647888,-500.0,0.00021369,2]
[316288657,1709424647897,-500.0,0.00021369,2]
[316288658,1709424647907,-3515.39,0.00021369,2]
[316288659,1709424647916,-500.0,0.00021369,2]
[316288660,1709424647926,-1014.33,0.00021369,2]
[316288661,1709424647935,-500.0,0.00021369,2]
[316288662,1709424647945,-1003.91,0.00021369,2]
[316288663,1709424647954,-500.0,0.00021369,2]
[316288664,1709424647963,-5260.88,0.00021369,2]
[316288665,1709424647972,-10978.73,0.00021369,2]
[316288666,1709424647982,-500.0,0.00021369,2]
[316288667,1709424647991,-35639.24,0.00021369,2]
[316288668,1709424648001,-500.0,0.00021369,2]
[316288669,1709424648010,-500.0,0.00021369,2]
[316288670,1709424648019,-886.02,0.00021369,2]
[316288671,1709424648028,-889.94,0.00021369,2]
[316288672,1709424648038,-8567.94,0.00021369,2]
[316288673,1709424648047,-500.0,0.00021369,2]
[316288674,1709424648056,-500.0,0.00021369,2]
[316288675,1709424648066,-500.0,0.00021369,2]
[316288676,1709424648075,-500.0,0.00021369,2]
[316288677,1709424648085,-547.76,0.00021369,2]
[316288678,1709424648094,-2948.94,0.00021369,2]
[316288679,1709424648103,-815.39,0.00021369,2]
[316288680,1709424648112,-500.0,0.00021369,2]
[316288681,1709424648122,-524.1661962,0.00021369,2]
[316288682,1709424648131,-482.68665341,0.00021369,2]
[316288683,1709424648140,-781.91,0.00021369,2]
[316288684,1709424648150,-811.62,0.00021369,2]
[316288685,1709424648159,-500.0,0.00021369,2]
[316288686,1709424648168,-500.0,0.00021369,2]
[316288687,1709424648178,-2037.15,0.00021369,2]
[316288688,1709424648187,-3221.6,0.00021369,2]
[316288689,1709424648196,-500.0,0.00021369,2]
[316288690,1709424648206,-500.0,0.00021369,2]
[316288691,1709424648216,-844.55,0.00021369,2]
[316288692,1709424648225,-8861.21,0.00021369,2]
[316288693,1709424648234,-500.0,0.00021369,2]
[316288694,1709424648243,-500.0,0.00021369,2]
[316288695,1709424648253,-1044.66,0.00021369,2]
[316288696,1709424648262,-500.0,0.00021369,2]
[316288697,1709424648272,-500.0,0.00021369,2]
[316288698,1709424648281,-2788.78,0.00021369,2]
[316288699,1709424648291,-500.0,0.00021369,2]
[316288700,1709424648302,-500.0,0.00021369,2]
[316288701,1709424648311,-500.0,0.00021369,2]
[316288702,1709424648321,-500.0,0.00021369,2]
[316288703,1709424648329,-500.0,0.00021369,2]
[316288704,1709424648339,-500.0,0.00021369,2]
[316288705,1709424648348,-500.0,0.00021369,2]
[316288706,1709424648358,-971.4,0.00021369,2]
[316288707,1709424648369,-500.0,0.00021369,2]
[316288708,1709424648379,-2674.88,0.00021369,2]
[316288709,1709424648390,-500.0,0.00021369,2]
[316288710,1709424648399,-1543.32,0.00021369,2]
[316288711,1709424648409,-630.34,0.00021369,2]
[316288712,1709424648419,-500.0,0.00021369,2]
[316288713,1709424648430,-500.0,0.00021369,2]
[316288714,1709424648440,-1386.45,0.00021369,2]
[316288715,1709424648450,-806.43,0.00021369,2]
[316288716,1709424648459,-515.74,0.00021369,2]
[316288717,1709424648468,-894.53,0.00021369,2]
[316288718,1709424648477,-500.0,0.00021369,2]
[316288719,1709424648487,-500.0,0.00021369,2]
[316288720,1709424648496,-508.48635901,0.00021369,2]
[316288721,1709424648506,-1019.65,0.00021369,2]
[316288722,1709424648515,-929.46,0.00021369,2]
[316288723,1709424648525,-500.0,0.00021369,2]
[316288724,1709424648534,-2576.66,0.00021369,2]
[316288725,1709424648544,-500.0,0.00021369,2]
[316288726,1709424648554,-500.0,0.00021369,2]
[316288727,1709424648563,-2054.18,0.00021369,2]
[316288728,1709424648573,-745.22,0.00021369,2]
[316288729,1709424648582,-2021.11,0.00021369,2]
[316288730,1709424648591,-1370.05,0.00021369,2]
[316288731,1709424648600,-500.0,0.00021369,2]
[316288732,1709424648610,-2439.91,0.00021369,2]
[316288733,1709424648619,-500.0,0.00021369,2]
[316288734,1709424648629,-500.0,0.00021369,2]
[316288735,1709424648638,-1203.96,0.00021369,2]
[316288736,1709424648648,-500.0,0.00021369,2]
[316288737,1709424648657,-500.0,0.00021369,2]
[316288738,1709424648667,-632.98,0.00021369,2]
[316288739,1709424648678,-3183.33,0.00021369,2]
[316288740,1709424648688,-2875.27,0.00021369,2]
[316288741,1709424648698,-902.1,0.00021369,2]
[316288742,1709424648707,-500.0,0.00021369,2]
[316288743,1709424648717,-1142.34,0.00021369,2]
[316288744,1709424648726,-500.0,0.00021369,2]
[316288745,1709424648736,-500.0,0.00021369,2]
[316288746,1709424648745,-9267.47,0.00021369,2]
[316288747,1709424648755,-500.0,0.00021369,2]
[316288748,1709424648766,-500.0,0.00021369,2]
[316288749,1709424648776,-1069.12,0.00021369,2]
[316288750,1709424648788,-500.0,0.00021369,2]
[316288751,1709424648797,-500.0,0.00021369,2]
[316288752,1709424648973,-500.0,0.00021369,2]
[316288753,1709424648982,-500.0,0.00021369,2]
[316288754,1709424648992,-500.0,0.00021369,2]
[316288755,1709424649001,-992.0,0.00021369,2]
[316288756,1709424649011,-1355.07,0.00021369,2]
[316288757,1709424649020,-500.0,0.00021369,2]
[316288758,1709424649030,-810.8,0.00021369,2]
[316288759,1709424649040,-1192.27,0.00021369,2]
[316288760,1709424649050,-801.52,0.00021369,2]
[316288761,1709424649059,-500.0,0.00021369,2]
[316288762,1709424649069,-500.0,0.00021369,2]
[316288763,1709424649078,-751.91,0.00021369,2]
[316288764,1709424649087,-1057.0,0.00021369,2]
[316288765,1709424649097,-1309.47,0.00021369,2]
[316288766,1709424649106,-516.8,0.00021369,2]
[316288767,1709424649116,-889.05,0.00021369,2]
[316288768,1709424649125,-980.21,0.00021369,2]
[316288769,1709424649134,-500.0,0.00021369,2]
[316288770,1709424649144,-1893.53,0.00021369,2]
[316288771,1709424649153,-500.0,0.00021369,2]
[316288772,1709424649162,-500.0,0.00021369,2]
[316288773,1709424649171,-500.0,0.00021369,2]
[316288774,1709424649182,-500.0,0.00021369,2]
[316288775,1709424649192,-1934.86,0.00021369,2]
[316288776,1709424649203,-2460.6,0.00021369,2]
[316288777,1709424649212,-1141.47,0.00021369,2]
[316288778,1709424649221,-3580.29,0.00021369,2]
[316288779,1709424649231,-500.0,0.00021369,2]
[316288780,1709424649240,-1921.96,0.00021369,2]
[316288781,1709424649249,-500.0,0.00021369,2]
[316288782,1709424649258,-651.98,0.00021369,2]
[316288783,1709424649267,-500.0,0.00021369,2]
[316288784,1709424649277,-1530.21,0.00021369,2]
[316288785,1709424649286,-1302.04,0.00021369,2]
[316288786,1709424649295,-1089.3,0.00021369,2]
[316288787,1709424649305,-500.0,0.00021369,2]
[316288788,1709424649314,-520.75,0.00021369,2]
[316288789,1709424649323,-500.0,0.00021369,2]
[316288790,1709424649332,-500.0,0.00021369,2]
[316288791,1709424649342,-1183.44,0.00021369,2]
[316288792,1709424649351,-633.79,0.00021369,2]
[316288793,1709424649362,-500.0,0.00021369,2]
[316288794,1709424649371,-3089.82,0.00021369,2]
[316288795,1709424649381,-1274.34,0.00021369,2]
[316288796,1709424649391,-1121.21,0.00021369,2]
[316288797,1709424649401,-1087.16,0.00021369,2]
[316288798,1709424649411,-500.0,0.00021369,2]
[316288799,1709424649420,-667.13,0.00021369,2]
[316288800,1709424649431,-632.13,0.00021369,2]
[316288801,1709424649441,-947.99,0.00021369,2]
[316288802,1709424649451,-500.0,0.00021369,2]
[316288803,1709424649460,-732.8,0.00021369,2]
[316288804,1709424649470,-500.0,0.00021369,2]
[316288805,1709424649479,-1266.75,0.00021369,2]
[316288806,1709424649489,-1053.66,0.00021369,2]
[316288807,1709424649498,-523.34,0.00021369,2]
[316288808,1709424649507,-500.0,0.00021369,2]
[316288809,1709424649517,-1047.78,0.00021369,2]
[316288810,1709424649526,-1186.76,0.00021369,2]
[316288811,1709424649535,-1654.71,0.00021369,2]
[316288812,1709424649545,-500.0,0.00021369,2]
[316288813,1709424649555,-741.98,0.00021369,2]
[316288814,1709424649564,-2645.35,0.00021369,2]
[316288815,1709424649573,-500.0,0.00021369,2]
[316288816,1709424649583,-1517.78,0.00021369,2]
[316288817,1709424649593,-989.32,0.00021369,2]
[316288818,1709424649602,-500.0,0.00021369,2]
[316288819,1709424649612,-696.22,0.00021369,2]
[316288820,1709424649621,-3183.76,0.00021369,2]
[316288821,1709424649631,-3458.62,0.00021369,2]
[316288822,1709424649640,-500.0,0.00021369,2]
[316288823,1709424649649,-500.0,0.00021369,2]
[316288824,1709424649659,-535.75,0.00021369,2]
[316288825,1709424649668,-500.0,0.00021369,2]
[316288826,1709424649680,-1305.24,0.00021369,2]
[316288827,1709424649690,-1433.06,0.00021369,2]
[316288828,1709424649699,-836.55,0.00021369,2]
[316288829,1709424649708,-500.0,0.00021369,2]
[316288830,1709424649718,-2374.22,0.00021369,2]
[316288831,1709424649727,-500.0,0.00021369,2]
[316288832,1709424649736,-950.89,0.00021369,2]
[316288833,1709424649745,-500.0,0.00021369,2]
[316288834,1709424649754,-500.0,0.00021369,2]
[316288835,1709424649766,-999.01,0.00021369,2]
[316288836,1709424649777,-500.0,0.00021369,2]
[316288837,1709424649786,-690.16,0.00021369,2]
[316288838,1709424649795,-500.0,0.00021369,2]
[316288839,1709424649805,-1863.64,0.00021369,2]
[316288840,1709424649815,-681.02,0.00021369,2]
[316288841,1709424649824,-932.49,0.00021369,2]
[316288842,1709424649835,-2121.92,0.00021369,2]
[316288843,1709424649845,-546.13,0.00021369,2]
[316288844,1709424649855,-500.0,0.00021369,2]
[316288845,1709424649865,-765.86,0.00021369,2]
[316288846,1709424649874,-3921.72,0.00021369,2]
[316288847,1709424649884,-500.0,0.00021369,2]
[316288848,1709424649893,-734.61,0.00021369,2]
[316288849,1709424649902,-1006.12,0.00021369,2]
[316288850,1709424649911,-500.0,0.00021369,2]
[316288851,1709424649920,-2244.67,0.00021369,2]
[316288852,1709424649931,-537.01,0.00021369,2]
[316288853,1709424649941,-500.0,0.00021369,2]
[316288854,1709424649950,-943.49,0.00021369,2]
[316288855,1709424649959,-3325.53,0.00021369,2]
[316288856,1709424649968,-500.0,0.00021369,2]
[316288857,1709424649977,-500.0,0.00021369,2]
[316288858,1709424649987,-579.55,0.00021369,2]
[316288859,1709424649997,-4562.11,0.00021369,2]
[316288860,1709424650008,-500.0,0.00021369,2]
[316288861,1709424650019,-695.9,0.00021369,2]
[316288862,1709424650030,-754.13,0.00021369,2]
[316288863,1709424650041,-658.52,0.00021369,2]
[316288864,1709424650050,-2127.78,0.00021369,2]
[316288865,1709424650060,-772.76,0.00021369,2]
[316288866,1709424650069,-1528.88,0.00021369,2]
[316288867,1709424650078,-875.85,0.00021369,2]
[316288868,1709424650088,-500.0,0.00021369,2]
[316288869,1709424650097,-2005.88,0.00021369,2]
[316288870,1709424650107,-500.0,0.00021369,2]
[316288871,1709424650117,-10711.22,0.00021369,2]
[316288872,1709424650126,-500.0,0.00021369,2]
[316288873,1709424650136,-613.51,0.00021369,2]
[316288874,1709424650145,-860.64,0.00021369,2]
[316288875,1709424650154,-624.51,0.00021369,2]
[316288876,1709424650164,-500.0,0.00021369,2]
[316288877,1709424650175,-602.26,0.00021369,2]
[316288878,1709424650184,-500.0,0.00021369,2]
[316288879,1709424650194,-4202.09,0.00021369,2]
[316288880,1709424650203,-961.39,0.00021369,2]
[316288881,1709424650213,-753.29,0.00021369,2]
[316288882,1709424650222,-1638.61,0.00021369,2]
[316288883,1709424650231,-500.0,0.00021369,2]
[316288884,1709424650241,-500.0,0.00021369,2]
[316288885,1709424650250,-1654.82,0.00021369,2]
[316288886,1709424650259,-2301.83,0.00021369,2]
[316288887,1709424650269,-652.54,0.00021369,2]
[316288888,1709424650279,-581.81,0.00021369,2]
[316288889,1709424650288,-500.0,0.00021369,2]
[316288890,1709424650297,-4235.84,0.00021369,2]
[316288891,1709424650307,-1369.44,0.00021369,2]
[316288892,1709424650316,-154.95146123,0.00021371,2]
[316288893,1709424650326,-3253.53699286,0.00021379,2]
[316288894,1709424650335,-2766.91379752,0.00021389,2]
[316288895,1709424650345,-181.71425955,0.00021398,2]
[316288896,1709424650355,-711.0,0.00021423,2]
[316288897,1709424650364,-456.0,0.00021423,2]
[316288898,1709424650374,-534.0,0.00021423,2]
[316288899,1709424650384,-1230.0,0.00021423,2]
[316288900,1709424650394,-1957.0,0.00021423,2]
[316288901,1709424650404,-601.0,0.00021423,2]
[316288902,1709424650413,-1009.0,0.00021423,2]
[316288903,1709424650423,-431.0,0.00021423,2]
[316288904,1709424650433,-1259.0,0.00021423,2]
[316288905,1709424650443,-1137.0,0.00021423,2]
[316288906,1709424650452,-837.0,0.00021423,2]
[316288907,1709424650461,-322.0,0.00021423,2]
[316288908,1709424650471,-277.0,0.00021423,2]
[316288909,1709424650480,-338.0,0.00021423,2]
[316288910,1709424650489,-2413.0,0.00021423,2]
[316288911,1709424650498,-2924.0,0.00021423,2]
[316288912,1709424650507,-1455.0,0.00021423,2]
[316288913,1709424650517,-392.0,0.00021423,2]
[316288914,1709424650527,-299.0,0.00021423,2]
[316288915,1709424650537,-151.5204897,0.00021424,2]
[316288916,1709424650546,-195.67,0.00021432,2]
[316288917,1709424650556,-154.95146123,0.00021437,2]
[316288918,1709424650565,-439.34,0.00021448,2]
[316288919,1709424650575,-1041.0,0.0002145,2]
[316288920,1709424650584,-2299.0,0.0002145,2]
[316288921,1709424650593,-336.22601944,0.00021462,6]
[316288922,1709424650602,-1233.72017686,0.00021472,6]
[316288923,1709424650612,-495514.83970535,0.00021479,4]
[316288924,1709424650621,-500.0,0.00021479,2]
[316288925,1709424650630,-274.68845552,0.00021479,2]
[316288926,1709424650640,-500.0,0.00021479,2]
[316288927,1709424650649,-279.66619041,0.00021479,2]
[316288928,1709424650658,-500.0,0.00021479,2]
[316288929,1709424650668,-500.0,0.00021479,2]
[316288930,1709424650678,-500.0,0.00021479,2]
[316288931,1709424650687,-500.0,0.00021479,2]
[316288932,1709424650697,-500.0,0.00021479,2]
[316288933,1709424650706,-500.0,0.00021479,2]
[316288934,1709424650716,-500.0,0.00021479,2]
[316288935,1709424650726,-500.0,0.00021479,2]
[316288936,1709424650736,-500.0,0.00021479,2]
[316288937,1709424650745,-500.0,0.00021479,2]
[316288938,1709424650755,-500.0,0.00021479,2]
[316288939,1709424650765,-513.75863959,0.00021479,2]
[316288940,1709424650774,-500.0,0.00021479,2]
[316288941,1709424650787,-500.0,0.00021479,2]
[316288942,1709424650797,-500.0,0.00021479,2]
[316288943,1709424650806,-500.0,0.00021479,2]
[316288944,1709424650816,-500.0,0.00021479,2]
[316288945,1709424650825,-323.24362119,0.00021479,2]
[316288946,1709424650834,-500.0,0.00021479,2]
[316288947,1709424650844,-500.0,0.00021479,2]
[316288948,1709424650853,-500.0,0.00021479,2]
[316288949,1709424650864,-500.0,0.00021479,2]
[316288950,1709424650873,-500.0,0.00021479,2]
[316288951,1709424650883,-500.0,0.00021479,2]
[316288952,1709424650892,-500.0,0.00021479,2]
[316288953,1709424650903,-500.0,0.00021479,2]
[316288954,1709424650913,-500.0,0.00021479,2]
[316288955,1709424650923,-500.0,0.00021479,2]
[316288956,1709424650933,-500.0,0.00021479,2]
[316288957,1709424650942,-500.0,0.00021479,2]
[316288958,1709424650952,-500.0,0.00021479,2]
[316288959,1709424650961,-500.0,0.00021479,2]
[316288960,1709424650970,-500.0,0.00021479,2]
[316288961,1709424650980,-264.92904576,0.00021479,2]
[316288962,1709424650989,-500.0,0.00021479,2]
[316288963,1709424650998,-500.0,0.00021479,2]
[316288964,1709424651008,-500.0,0.00021479,2]
[316288965,1709424651018,-500.0,0.00021479,2]
[316288966,1709424651028,-500.0,0.00021479,2]
[316288967,1709424651037,-714.99,0.00021479,2]
[316288968,1709424651046,-500.0,0.00021479,2]
[316288969,1709424651055,-523.78,0.00021479,2]
[316288970,1709424651064,-836.54,0.00021479,2]
[316288971,1709424651074,-500.0,0.00021479,2]
[316288972,1709424651402,-500.0,0.00021479,2]
[316288973,1709424651417,-380.75530507,0.00021479,2]
[316288974,1709424651426,-500.0,0.00021479,2]
[316288975,1709424651436,-500.0,0.00021479,2]
[316288976,1709424651444,-500.0,0.00021479,2]
[316288977,1709424651454,-500.0,0.00021479,2]
[316288978,1709424651463,-500.0,0.00021479,2]
[316288979,1709424651473,-500.0,0.00021479,2]
[316288980,1709424651483,-500.0,0.00021479,2]
[316288981,1709424651492,-500.0,0.00021479,2]
[316288982,1709424651501,-500.0,0.00021479,2]
[316288983,1709424651510,-500.0,0.00021479,2]
[316288984,1709424651519,-500.0,0.00021479,2]
[316288985,1709424651529,-500.0,0.00021479,2]
[316288986,1709424651538,-500.0,0.00021479,2]
[316288987,1709424651547,-500.0,0.00021479,2]
[316288988,1709424651556,-500.0,0.00021479,2]
[316288989,1709424651566,-500.0,0.00021479,2]
[316288990,1709424651575,-500.0,0.00021479,2]
[316288991,1709424651584,-500.0,0.00021479,2]
[316288992,1709424651594,-523.92,0.00021479,2]
[316288993,1709424651603,-500.0,0.00021479,2]
[316288994,1709424651613,-500.0,0.00021479,2]
[316288995,1709424651622,-500.0,0.00021479,2]
[316288996,1709424651632,-543.5,0.00021479,2]
[316288997,1709424651641,-500.0,0.00021479,2]
[316288998,1709424651651,-500.0,0.00021479,2]
[316288999,1709424651660,-574.4,0.00021479,2]
[316289000,1709424651670,-500.0,0.00021479,2]
[316289001,1709424651679,-500.0,0.00021479,2]
[316289002,1709424651688,-500.0,0.00021479,2]
[316289003,1709424651698,-500.0,0.00021479,2]
[316289004,1709424651707,-500.0,0.00021479,2]